[Event "Titled Tuesday Blitz June 27 Late 2023"]
[White "Moral Garcia, Serafin"]
[Black "Chor, Kevin"]
[WhiteFideId "2201925"]
[BlackFideId "2090740"]
[WhiteElo "2608"]
[BlackElo "2541"]
[Result "1-0"]
[Round "10"]
[TimeControl "180+2"]
[Date "2023.06.27"]
[WhiteClock "0:00:15"]
[BlackClock "0:00:03"]
[Board "49"]

1. e4 {[%clk 0:02:29]}  c5 {[%clk 0:02:59]} 2. Nf3 {[%clk 0:02:29]}  Nc6 {[%clk 0:02:59]} 3. Bb5 {[%clk 0:02:29]}  Qb6 {[%clk 0:02:48]} 4. Nc3 {[%clk 0:02:22]}  e6 {[%clk 0:02:44]} 5. Bxc6 {[%clk 0:02:22]}  Qxc6 {[%clk 0:02:35]} 6. d4 {[%clk 0:02:22]}  cxd4 {[%clk 0:02:33]} 7. Nxd4 {[%clk 0:02:22]}  Qc7 {[%clk 0:02:28]} 8. O-O {[%clk 0:02:22]}  a6 {[%clk 0:02:25]} 9. Bg5 {[%clk 0:02:21]}  Bb4 {[%clk 0:02:05]} 10. Qd3 {[%clk 0:01:56]}  Nf6 {[%clk 0:01:29]} 11. a3 {[%clk 0:01:39]}  Be7 {[%clk 0:01:26]} 12. Rfe1 {[%clk 0:01:33]}  d6 {[%clk 0:01:21]} 13. Rad1 {[%clk 0:01:18]}  O-O {[%clk 0:01:15]} 14. Nf3 {[%clk 0:01:12]}  Rd8 {[%clk 0:01:07]} 15. Qe3 {[%clk 0:01:04]}  b5 {[%clk 0:01:00]} 16. h3 {[%clk 0:00:53]}  Bb7 {[%clk 0:00:57]} 17. Qf4 {[%clk 0:00:53]}  h6 {[%clk 0:00:49]} 18. Bh4 {[%clk 0:00:50]}  e5 {[%clk 0:00:33]} 19. Qe3 {[%clk 0:00:43]}  Rac8 {[%clk 0:00:30]} 20. Re2 {[%clk 0:00:39]}  d5 {[%clk 0:00:24]} 21. Bxf6 {[%clk 0:00:36]}  d4 {[%clk 0:00:21]} 22. Bxe5 {[%clk 0:00:20]}  dxe3 {[%clk 0:00:12]} 23. Bxc7 {[%clk 0:00:19]}  Rxd1+ {[%clk 0:00:12]} 24. Nxd1 {[%clk 0:00:19]}  exf2+ {[%clk 0:00:12]} 25. Kxf2 {[%clk 0:00:19]}  Rxc7 {[%clk 0:00:13]} 26. c3 {[%clk 0:00:19]}  Bc5+ {[%clk 0:00:11]} 27. Kf1 {[%clk 0:00:18]}  Re7 {[%clk 0:00:11]} 28. e5 {[%clk 0:00:17]}  Rd7 {[%clk 0:00:11]} 29. Ke1 {[%clk 0:00:17]}  Kf8 {[%clk 0:00:11]} 30. Nf2 {[%clk 0:00:17]}  Bxf3 {[%clk 0:00:10]} 31. gxf3 {[%clk 0:00:17]}  Ke7 {[%clk 0:00:11]} 32. Ne4 {[%clk 0:00:18]}  Ba7 {[%clk 0:00:11]} 33. f4 {[%clk 0:00:18]}  Bb8 {[%clk 0:00:11]} 34. Rd2 {[%clk 0:00:17]}  Rxd2 {[%clk 0:00:11]} 35. Kxd2 {[%clk 0:00:17]}  Ba7 {[%clk 0:00:11]} 36. Ke2 {[%clk 0:00:17]}  Ke6 {[%clk 0:00:12]} 37. Kf3 {[%clk 0:00:17]}  f6 {[%clk 0:00:11]} 38. exf6 {[%clk 0:00:17]}  gxf6 {[%clk 0:00:12]} 39. b3 {[%clk 0:00:18]}  a5 {[%clk 0:00:10]} 40. c4 {[%clk 0:00:17]}  a4 {[%clk 0:00:10]} 41. bxa4 {[%clk 0:00:16]}  bxc4 {[%clk 0:00:10]} 42. Nc3 {[%clk 0:00:16]}  Bc5 {[%clk 0:00:09]} 43. Nb5 {[%clk 0:00:15]}  Kf5 {[%clk 0:00:09]} 44. a5 {[%clk 0:00:15]}  h5 {[%clk 0:00:09]} 45. a4 {[%clk 0:00:15]}  Ke6 {[%clk 0:00:07]} 46. a6 {[%clk 0:00:15]}  Kd5 {[%clk 0:00:04]} 47. Ke2 {[%clk 0:00:14]}  Kc6 {[%clk 0:00:03]} 48. Kd2 {[%clk 0:00:14]}  Kb6 {[%clk 0:00:03]} 49. a7 {[%clk 0:00:14]}  Kb7 {[%clk 0:00:03]} 50. f5 {[%clk 0:00:15]}  Bxa7 {[%clk 0:00:03]} 51. Nxa7 {[%clk 0:00:14]}  Kxa7 {[%clk 0:00:04]} 52. Kc3 {[%clk 0:00:15]}  Kb6 {[%clk 0:00:05]} 53. Kxc4 {[%clk 0:00:15]}  Kc6 {[%clk 0:00:03]} 54. a5 {[%clk 0:00:15]} 1-0


[Site "https://www.chess.com"]

[Event "Titled Tuesday Blitz June 27 Late 2023"]
[White "Zeynalli, Rashad"]
[Black "Liu, Casper"]
[WhiteFideId "13403320"]
[BlackFideId "1454153"]
[WhiteElo "2602"]
[BlackElo "2536"]
[Result "1/2-1/2"]
[Round "10"]
[TimeControl "180+2"]
[Date "2023.06.27"]
[WhiteClock "0:00:31"]
[BlackClock "0:01:40"]
[Board "50"]

1. e4 {[%clk 0:03:00]}  c5 {[%clk 0:02:59]} 2. Nf3 {[%clk 0:03:00]}  d6 {[%clk 0:03:00]} 3. Bb5+ {[%clk 0:03:00]}  Nc6 {[%clk 0:02:58]} 4. O-O {[%clk 0:02:59]}  g6 {[%clk 0:02:59]} 5. Re1 {[%clk 0:02:57]}  Bg7 {[%clk 0:02:59]} 6. c3 {[%clk 0:02:54]}  Nf6 {[%clk 0:02:59]} 7. d4 {[%clk 0:02:47]}  cxd4 {[%clk 0:02:59]} 8. cxd4 {[%clk 0:02:47]}  O-O {[%clk 0:02:59]} 9. Nc3 {[%clk 0:02:46]}  Bg4 {[%clk 0:02:58]} 10. Be3 {[%clk 0:02:34]}  Rc8 {[%clk 0:02:57]} 11. h3 {[%clk 0:02:33]}  Bxf3 {[%clk 0:02:54]} 12. Qxf3 {[%clk 0:02:34]}  a6 {[%clk 0:02:51]} 13. Bf1 {[%clk 0:02:25]}  Qa5 {[%clk 0:02:51]} 14. Rad1 {[%clk 0:02:13]}  Nd7 {[%clk 0:02:50]} 15. a3 {[%clk 0:02:04]}  Nb6 {[%clk 0:02:47]} 16. Qe2 {[%clk 0:01:49]}  d5 {[%clk 0:02:34]} 17. e5 {[%clk 0:01:43]}  Nc4 {[%clk 0:02:33]} 18. Nxd5 {[%clk 0:01:39]}  Qxd5 {[%clk 0:02:26]} 19. Qxc4 {[%clk 0:01:38]}  Qxc4 {[%clk 0:02:27]} 20. Bxc4 {[%clk 0:01:39]}  Nxe5 {[%clk 0:02:28]} 21. Bxa6 {[%clk 0:01:30]}  bxa6 {[%clk 0:02:29]} 22. dxe5 {[%clk 0:01:31]}  Bxe5 {[%clk 0:02:29]} 23. Bh6 {[%clk 0:01:31]}  Bg7 {[%clk 0:02:22]} 24. Bxg7 {[%clk 0:01:32]}  Kxg7 {[%clk 0:02:23]} 25. Rxe7 {[%clk 0:01:31]}  Rc2 {[%clk 0:02:21]} 26. Rb7 {[%clk 0:01:32]}  Re8 {[%clk 0:02:18]} 27. Ra7 {[%clk 0:00:58]}  Ree2 {[%clk 0:02:14]} 28. Rf1 {[%clk 0:00:57]}  Re6 {[%clk 0:01:57]} 29. Rb7 {[%clk 0:00:40]}  Ree2 {[%clk 0:01:57]} 30. Rb6 {[%clk 0:00:37]}  Rxb2 {[%clk 0:01:45]} 31. Rxa6 {[%clk 0:00:37]}  Ra2 {[%clk 0:01:46]} 32. g3 {[%clk 0:00:35]}  Reb2 {[%clk 0:01:44]} 33. Kg2 {[%clk 0:00:31]}  h5 {[%clk 0:01:42]} 34. h4 {[%clk 0:00:31]}  Rb3 {[%clk 0:01:41]} 35. a4 {[%clk 0:00:31]}  Rb4 {[%clk 0:01:42]} 36. a5 {[%clk 0:00:31]}  Rb5 {[%clk 0:01:42]} 37. Re1 {[%clk 0:00:31]}  Rbxa5 {[%clk 0:01:41]} 38. Rxa5 {[%clk 0:00:32]}  Rxa5 {[%clk 0:01:41]} 39. Re3 {[%clk 0:00:31]}  Ra2 {[%clk 0:01:40]} 40. Rf3 {[%clk 0:00:31]} 1/2-1/2


[Site "https://www.chess.com"]

[Event "Titled Tuesday Blitz June 27 Late 2023"]
[White "liwadas82"]
[Black "Ganiev, Roman"]
[BlackFideId "4131452"]
[WhiteElo "2460"]
[BlackElo "2578"]
[Result "1/2-1/2"]
[Round "10"]
[TimeControl "180+2"]
[Date "2023.06.27"]
[WhiteClock "0:00:05"]
[BlackClock "0:00:09"]
[Board "56"]

1. e4 {[%clk 0:03:00]}  c5 {[%clk 0:02:55]} 2. Nf3 {[%clk 0:03:01]}  d6 {[%clk 0:02:55]} 3. d4 {[%clk 0:03:01]}  cxd4 {[%clk 0:02:56]} 4. Nxd4 {[%clk 0:03:02]}  Nf6 {[%clk 0:02:57]} 5. Nc3 {[%clk 0:03:02]}  a6 {[%clk 0:02:57]} 6. Be3 {[%clk 0:03:02]}  e5 {[%clk 0:02:58]} 7. Nb3 {[%clk 0:03:02]}  h5 {[%clk 0:02:58]} 8. f3 {[%clk 0:03:00]}  Be6 {[%clk 0:02:58]} 9. Qd2 {[%clk 0:03:00]}  Nbd7 {[%clk 0:02:58]} 10. O-O-O {[%clk 0:03:01]}  Rc8 {[%clk 0:02:58]} 11. Kb1 {[%clk 0:03:01]}  b5 {[%clk 0:02:58]} 12. Nd5 {[%clk 0:02:59]}  Bxd5 {[%clk 0:02:58]} 13. exd5 {[%clk 0:03:00]}  Nb6 {[%clk 0:02:58]} 14. f4 {[%clk 0:02:45]}  e4 {[%clk 0:02:46]} 15. Bxb6 {[%clk 0:01:54]}  Qxb6 {[%clk 0:02:46]} 16. Na5 {[%clk 0:01:50]}  Be7 {[%clk 0:02:41]} 17. Nc6 {[%clk 0:01:50]}  Nxd5 {[%clk 0:02:40]} 18. Nxe7 {[%clk 0:01:18]}  Nxe7 {[%clk 0:02:41]} 19. Qxd6 {[%clk 0:01:16]}  Qxd6 {[%clk 0:02:42]} 20. Rxd6 {[%clk 0:01:15]}  Rc6 {[%clk 0:02:42]} 21. Rd4 {[%clk 0:01:09]}  f5 {[%clk 0:02:42]} 22. Be2 {[%clk 0:01:07]}  Kf7 {[%clk 0:02:17]} 23. c4 {[%clk 0:01:07]}  bxc4 {[%clk 0:02:13]} 24. Bxc4+ {[%clk 0:01:04]}  Kf6 {[%clk 0:01:50]} 25. Rhd1 {[%clk 0:01:04]}  Nc8 {[%clk 0:01:51]} 26. Be2 {[%clk 0:00:51]}  Re8 {[%clk 0:01:04]} 27. b4 {[%clk 0:00:44]}  Rb6 {[%clk 0:00:57]} 28. a4 {[%clk 0:00:41]}  g6 {[%clk 0:00:56]} 29. b5 {[%clk 0:00:41]}  axb5 {[%clk 0:00:57]} 30. Bxb5 {[%clk 0:00:39]}  Ree6 {[%clk 0:00:53]} 31. Rd8 {[%clk 0:00:38]}  Nd6 {[%clk 0:00:51]} 32. Rf8+ {[%clk 0:00:28]}  Kg7 {[%clk 0:00:48]} 33. Rd8 {[%clk 0:00:18]}  Kf6 {[%clk 0:00:40]} 34. Kc2 {[%clk 0:00:13]}  Nxb5 {[%clk 0:00:39]} 35. axb5 {[%clk 0:00:13]}  Rxb5 {[%clk 0:00:39]} 36. R1d7 {[%clk 0:00:13]}  Rc5+ {[%clk 0:00:37]} 37. Kb3 {[%clk 0:00:12]}  Re7 {[%clk 0:00:33]} 38. Rf8+ {[%clk 0:00:10]}  Ke6 {[%clk 0:00:32]} 39. Rdd8 {[%clk 0:00:09]}  Rcc7 {[%clk 0:00:29]} 40. Rg8 {[%clk 0:00:04]}  Rg7 {[%clk 0:00:26]} 41. Rde8+ {[%clk 0:00:04]}  Rce7 {[%clk 0:00:27]} 42. Rxg7 {[%clk 0:00:02]}  Rxe8 {[%clk 0:00:27]} 43. Rxg6+ {[%clk 0:00:03]}  Kd5 {[%clk 0:00:28]} 44. Kc3 {[%clk 0:00:03]}  Rc8+ {[%clk 0:00:25]} 45. Kd2 {[%clk 0:00:03]}  Ra8 {[%clk 0:00:25]} 46. Rg7 {[%clk 0:00:03]}  Ra2+ {[%clk 0:00:24]} 47. Ke3 {[%clk 0:00:03]}  Ra3+ {[%clk 0:00:24]} 48. Ke2 {[%clk 0:00:03]}  h4 {[%clk 0:00:23]} 49. Rd7+ {[%clk 0:00:03]}  Kc4 {[%clk 0:00:24]} 50. Rc7+ {[%clk 0:00:03]}  Kd4 {[%clk 0:00:24]} 51. Rd7+ {[%clk 0:00:03]}  Kc5 {[%clk 0:00:25]} 52. Rc7+ {[%clk 0:00:04]}  Kd6 {[%clk 0:00:24]} 53. Rf7 {[%clk 0:00:04]}  Ke6 {[%clk 0:00:25]} 54. Rh7 {[%clk 0:00:05]}  Ra2+ {[%clk 0:00:25]} 55. Ke3 {[%clk 0:00:05]}  Rxg2 {[%clk 0:00:25]} 56. Rxh4 {[%clk 0:00:05]}  Rg1 {[%clk 0:00:25]} 57. Rh6+ {[%clk 0:00:06]}  Kd5 {[%clk 0:00:26]} 58. Rh5 {[%clk 0:00:06]}  Ke6 {[%clk 0:00:25]} 59. Rh6+ {[%clk 0:00:06]}  Kf7 {[%clk 0:00:25]} 60. Rh7+ {[%clk 0:00:05]}  Kg6 {[%clk 0:00:25]} 61. Rh8 {[%clk 0:00:06]}  Re1+ {[%clk 0:00:25]} 62. Kf2 {[%clk 0:00:06]}  Ra1 {[%clk 0:00:24]} 63. Rg8+ {[%clk 0:00:06]}  Kf6 {[%clk 0:00:23]} 64. Rh8 {[%clk 0:00:06]}  Ra3 {[%clk 0:00:22]} 65. Rh6+ {[%clk 0:00:05]}  Kg7 {[%clk 0:00:22]} 66. Rd6 {[%clk 0:00:04]}  Rf3+ {[%clk 0:00:21]} 67. Ke2 {[%clk 0:00:01]}  Rxf4 {[%clk 0:00:22]} 68. Ke3 {[%clk 0:00:01]}  Rh4 {[%clk 0:00:23]} 69. Kd4 {[%clk 0:00:02]}  Kf7 {[%clk 0:00:21]} 70. Ke5 {[%clk 0:00:03]}  e3 {[%clk 0:00:18]} 71. Kxf5 {[%clk 0:00:02]}  e2 {[%clk 0:00:16]} 72. Rf6+ {[%clk 0:00:03]}  Kg7 {[%clk 0:00:14]} 73. Re6 {[%clk 0:00:04]}  Rxh2 {[%clk 0:00:13]} 74. Kf4 {[%clk 0:00:04]}  Kf7 {[%clk 0:00:13]} 75. Re3 {[%clk 0:00:05]}  Rf2+ {[%clk 0:00:09]} 76. Kg3 {[%clk 0:00:05]}  Rf6 {[%clk 0:00:07]} 77. Rxe2 {[%clk 0:00:05]}  Rg6+ {[%clk 0:00:08]} 78. Kf3 {[%clk 0:00:05]}  Rf6+ {[%clk 0:00:08]} 79. Ke3 {[%clk 0:00:05]}  Kg6 {[%clk 0:00:09]} 80. Rf2 {[%clk 0:00:05]}  Rxf2 {[%clk 0:00:09]} 81. Kxf2 {[%clk 0:00:05]} 1/2-1/2


[Site "https://www.chess.com"]

[Event "Titled Tuesday Blitz June 27 Late 2023"]
[White "JackRodgers"]
[Black "Bernado Lopez, Roger"]
[BlackFideId "24585009"]
[WhiteElo "2567"]
[BlackElo "2379"]
[Result "1-0"]
[Round "10"]
[TimeControl "180+2"]
[Date "2023.06.27"]
[WhiteClock "0:00:08"]
[BlackClock "0:00:01"]
[Board "57"]

1. d4 {[%clk 0:02:56]}  d5 {[%clk 0:03:00]} 2. c4 {[%clk 0:02:56]}  e6 {[%clk 0:03:00]} 3. Nc3 {[%clk 0:02:56]}  h6 {[%clk 0:03:01]} 4. Nf3 {[%clk 0:02:55]}  Nf6 {[%clk 0:03:01]} 5. cxd5 {[%clk 0:02:55]}  exd5 {[%clk 0:03:02]} 6. Bf4 {[%clk 0:02:55]}  Bd6 {[%clk 0:03:02]} 7. Bg3 {[%clk 0:02:52]}  O-O {[%clk 0:03:02]} 8. e3 {[%clk 0:02:52]}  Bxg3 {[%clk 0:03:01]} 9. hxg3 {[%clk 0:02:53]}  c6 {[%clk 0:03:00]} 10. Bd3 {[%clk 0:02:54]}  Re8 {[%clk 0:02:59]} 11. Qc2 {[%clk 0:02:54]}  Nbd7 {[%clk 0:02:59]} 12. O-O-O {[%clk 0:02:53]}  b5 {[%clk 0:02:52]} 13. Rh4 {[%clk 0:02:52]}  Nb6 {[%clk 0:02:48]} 14. Ne5 {[%clk 0:02:48]}  Qd6 {[%clk 0:02:31]} 15. Rdh1 {[%clk 0:02:46]}  Nc4 {[%clk 0:02:30]} 16. Nxf7 {[%clk 0:02:28]}  Kxf7 {[%clk 0:02:29]} 17. Bg6+ {[%clk 0:02:29]}  Kg8 {[%clk 0:02:27]} 18. Bxe8 {[%clk 0:02:29]}  Nxe8 {[%clk 0:02:28]} 19. g4 {[%clk 0:02:21]}  Qf6 {[%clk 0:02:20]} 20. b3 {[%clk 0:01:53]}  Ncd6 {[%clk 0:02:16]} 21. f4 {[%clk 0:01:52]}  Nf7 {[%clk 0:02:12]} 22. Ne2 {[%clk 0:01:36]}  Ned6 {[%clk 0:02:05]} 23. Ng3 {[%clk 0:01:35]}  Qe6 {[%clk 0:01:52]} 24. Kd2 {[%clk 0:01:29]}  Ne4+ {[%clk 0:01:48]} 25. Nxe4 {[%clk 0:01:29]}  dxe4 {[%clk 0:01:49]} 26. g5 {[%clk 0:01:22]}  b4 {[%clk 0:01:40]} 27. gxh6 {[%clk 0:01:19]}  Nxh6 {[%clk 0:01:40]} 28. Qc5 {[%clk 0:01:10]}  Ba6 {[%clk 0:01:35]} 29. Qg5 {[%clk 0:01:07]}  Nf7 {[%clk 0:01:18]} 30. Qh5 {[%clk 0:00:58]}  c5 {[%clk 0:01:15]} 31. Qh7+ {[%clk 0:00:42]}  Kf8 {[%clk 0:01:16]} 32. f5 {[%clk 0:00:42]}  Qf6 {[%clk 0:01:09]} 33. Qg6 {[%clk 0:00:40]}  Rd8 {[%clk 0:00:24]} 34. Qxf6 {[%clk 0:00:30]}  gxf6 {[%clk 0:00:24]} 35. Rxe4 {[%clk 0:00:29]}  cxd4 {[%clk 0:00:21]} 36. Rxd4 {[%clk 0:00:28]}  Rxd4+ {[%clk 0:00:19]} 37. exd4 {[%clk 0:00:29]}  Bb7 {[%clk 0:00:19]} 38. Rg1 {[%clk 0:00:25]}  Nd6 {[%clk 0:00:16]} 39. g4 {[%clk 0:00:24]}  Ne4+ {[%clk 0:00:16]} 40. Ke3 {[%clk 0:00:24]}  Ke7 {[%clk 0:00:16]} 41. Kf4 {[%clk 0:00:23]}  Ng5 {[%clk 0:00:07]} 42. Rc1 {[%clk 0:00:20]}  Kd6 {[%clk 0:00:07]} 43. Rc4 {[%clk 0:00:19]}  a5 {[%clk 0:00:07]} 44. a3 {[%clk 0:00:17]}  Bd5 {[%clk 0:00:04]} 45. Rc5 {[%clk 0:00:14]}  Bxb3 {[%clk 0:00:02]} 46. axb4 {[%clk 0:00:14]}  a4 {[%clk 0:00:02]} 47. Ra5 {[%clk 0:00:14]}  Nf7 {[%clk 0:00:02]} 48. b5 {[%clk 0:00:13]}  Kc7 {[%clk 0:00:01]} 49. Ra6 {[%clk 0:00:13]}  Kb7 {[%clk 0:00:02]} 50. Rxf6 {[%clk 0:00:13]}  a3 {[%clk 0:00:02]} 51. Ra6 {[%clk 0:00:13]}  a2 {[%clk 0:00:02]} 52. g5 {[%clk 0:00:14]}  Nd6 {[%clk 0:00:03]} 53. g6 {[%clk 0:00:11]}  Nxb5 {[%clk 0:00:02]} 54. Rxa2 {[%clk 0:00:10]}  Bxa2 {[%clk 0:00:03]} 55. Ke5 {[%clk 0:00:10]}  Kc7 {[%clk 0:00:02]} 56. f6 {[%clk 0:00:10]}  Kd7 {[%clk 0:00:03]} 57. d5 {[%clk 0:00:08]}  Nc7 {[%clk 0:00:03]} 58. f7 {[%clk 0:00:07]}  Ke7 {[%clk 0:00:03]} 59. d6+ {[%clk 0:00:08]}  Kf8 {[%clk 0:00:01]} 60. dxc7 {[%clk 0:00:08]} 1-0


[Site "https://www.chess.com"]

[Event "Titled Tuesday Blitz June 27 Late 2023"]
[White "Sun, Rick"]
[Black "whiteglovethief"]
[WhiteFideId "30909481"]
[WhiteElo "2584"]
[BlackElo "2464"]
[Result "1-0"]
[Round "10"]
[TimeControl "180+2"]
[Date "2023.06.27"]
[WhiteClock "0:00:11"]
[BlackClock "0:00:00"]
[Board "59"]

1. d4 {[%clk 0:03:00]}  e6 {[%clk 0:02:58]} 2. e4 {[%clk 0:03:00]}  d5 {[%clk 0:02:58]} 3. exd5 {[%clk 0:03:01]}  exd5 {[%clk 0:02:58]} 4. Nf3 {[%clk 0:03:02]}  Bd6 {[%clk 0:02:58]} 5. Bd3 {[%clk 0:03:02]}  Ne7 {[%clk 0:02:58]} 6. c4 {[%clk 0:03:03]}  dxc4 {[%clk 0:02:57]} 7. Bxc4 {[%clk 0:03:04]}  O-O {[%clk 0:02:57]} 8. O-O {[%clk 0:03:04]}  Bg4 {[%clk 0:02:56]} 9. Nc3 {[%clk 0:03:02]}  Nbc6 {[%clk 0:02:55]} 10. Bg5 {[%clk 0:02:50]}  Qd7 {[%clk 0:02:55]} 11. Re1 {[%clk 0:02:38]}  Ng6 {[%clk 0:02:52]} 12. Ne4 {[%clk 0:02:10]}  Bb4 {[%clk 0:02:39]} 13. Re3 {[%clk 0:02:00]}  Bxf3 {[%clk 0:02:29]} 14. Qxf3 {[%clk 0:01:42]}  Nxd4 {[%clk 0:02:27]} 15. Qh5 {[%clk 0:01:36]}  Rfe8 {[%clk 0:02:01]} 16. Rh3 {[%clk 0:01:28]}  Qxh3 {[%clk 0:01:07]} 17. Qxh3 {[%clk 0:01:08]}  Rxe4 {[%clk 0:01:07]} 18. Bd3 {[%clk 0:00:53]}  Ree8 {[%clk 0:00:52]} 19. Be3 {[%clk 0:00:49]}  Rad8 {[%clk 0:00:48]} 20. a3 {[%clk 0:00:46]}  Ba5 {[%clk 0:00:47]} 21. Rd1 {[%clk 0:00:41]}  Bb6 {[%clk 0:00:46]} 22. Kf1 {[%clk 0:00:37]}  c5 {[%clk 0:00:37]} 23. Bb1 {[%clk 0:00:32]}  a5 {[%clk 0:00:23]} 24. Re1 {[%clk 0:00:18]}  a4 {[%clk 0:00:18]} 25. Qg3 {[%clk 0:00:18]}  Ba5 {[%clk 0:00:17]} 26. Rc1 {[%clk 0:00:16]}  b6 {[%clk 0:00:16]} 27. Ba2 {[%clk 0:00:12]}  Re7 {[%clk 0:00:14]} 28. h4 {[%clk 0:00:12]}  Ne5 {[%clk 0:00:11]} 29. h5 {[%clk 0:00:12]}  Nd3 {[%clk 0:00:00]} 30. Bxd4 {[%clk 0:00:11]} 1-0


[Site "https://www.chess.com"]

[Event "Titled Tuesday Blitz June 27 Late 2023"]
[White "Ozates, Tuna"]
[Black "Tomaszewski, Kacper"]
[WhiteFideId "6354521"]
[BlackFideId "1127373"]
[WhiteElo "2566"]
[BlackElo "2468"]
[Result "0-1"]
[Round "10"]
[TimeControl "180+2"]
[Date "2023.06.27"]
[WhiteClock "0:00:02"]
[BlackClock "0:00:08"]
[Board "60"]

1. e4 {[%clk 0:02:58]}  e6 {[%clk 0:02:50]} 2. d4 {[%clk 0:02:56]}  d5 {[%clk 0:02:49]} 3. exd5 {[%clk 0:02:57]}  exd5 {[%clk 0:02:48]} 4. Bd3 {[%clk 0:02:57]}  Nc6 {[%clk 0:02:48]} 5. c3 {[%clk 0:02:55]}  Bd6 {[%clk 0:02:47]} 6. Qf3 {[%clk 0:02:55]}  Nge7 {[%clk 0:02:46]} 7. h3 {[%clk 0:02:55]}  Be6 {[%clk 0:02:39]} 8. Ne2 {[%clk 0:02:53]}  Ng6 {[%clk 0:02:36]} 9. g3 {[%clk 0:02:49]}  Qd7 {[%clk 0:02:29]} 10. Na3 {[%clk 0:02:36]}  a6 {[%clk 0:02:27]} 11. Nc2 {[%clk 0:02:35]}  O-O-O {[%clk 0:02:21]} 12. Bf4 {[%clk 0:02:02]}  Nxf4 {[%clk 0:02:18]} 13. Nxf4 {[%clk 0:02:02]}  Rhe8 {[%clk 0:02:14]} 14. O-O-O {[%clk 0:02:00]}  Bf8 {[%clk 0:01:51]} 15. Ne3 {[%clk 0:01:54]}  h6 {[%clk 0:01:47]} 16. g4 {[%clk 0:01:53]}  g5 {[%clk 0:01:46]} 17. Nh5 {[%clk 0:01:52]}  Be7 {[%clk 0:01:38]} 18. Nf5 {[%clk 0:01:49]}  Kb8 {[%clk 0:01:29]} 19. Nxh6 {[%clk 0:01:42]}  b5 {[%clk 0:01:22]} 20. Rhe1 {[%clk 0:01:42]}  b4 {[%clk 0:01:21]} 21. Bxa6 {[%clk 0:01:39]}  bxc3 {[%clk 0:01:21]} 22. bxc3 {[%clk 0:01:39]}  Na5 {[%clk 0:01:10]} 23. Kd2 {[%clk 0:01:35]}  Qa4 {[%clk 0:01:05]} 24. Rb1+ {[%clk 0:01:35]}  Ka7 {[%clk 0:01:03]} 25. Bb5 {[%clk 0:01:35]}  Qxa2+ {[%clk 0:01:03]} 26. Kd3 {[%clk 0:01:34]}  c6 {[%clk 0:00:58]} 27. Ra1 {[%clk 0:01:33]}  Qb3 {[%clk 0:00:42]} 28. Reb1 {[%clk 0:01:20]}  Qxb1+ {[%clk 0:00:42]} 29. Rxb1 {[%clk 0:01:20]}  cxb5 {[%clk 0:00:43]} 30. Rxb5 {[%clk 0:01:20]}  Ka6 {[%clk 0:00:38]} 31. Rb1 {[%clk 0:01:13]}  Rc8 {[%clk 0:00:38]} 32. Qd1 {[%clk 0:01:07]}  Rc4 {[%clk 0:00:35]} 33. Ng7 {[%clk 0:00:56]}  Rec8 {[%clk 0:00:34]} 34. Rc1 {[%clk 0:00:55]}  Ba3 {[%clk 0:00:33]} 35. Rc2 {[%clk 0:00:54]}  Bd7 {[%clk 0:00:31]} 36. Qa1 {[%clk 0:00:47]}  Bb5 {[%clk 0:00:24]} 37. Ke3 {[%clk 0:00:31]}  Bd6 {[%clk 0:00:19]} 38. Nhf5 {[%clk 0:00:30]}  Bf4+ {[%clk 0:00:19]} 39. Kf3 {[%clk 0:00:30]}  Ba4 {[%clk 0:00:19]} 40. Ra2 {[%clk 0:00:29]}  Rxc3+ {[%clk 0:00:19]} 41. Kg2 {[%clk 0:00:30]}  Rc1 {[%clk 0:00:14]} 42. Qb2 {[%clk 0:00:24]}  R8c2 {[%clk 0:00:14]} 43. Qb4 {[%clk 0:00:24]}  Rxa2 {[%clk 0:00:13]} 44. Qe7 {[%clk 0:00:07]}  Rcc2 {[%clk 0:00:11]} 45. Qf6+ {[%clk 0:00:05]}  Nc6 {[%clk 0:00:12]} 46. Kg1 {[%clk 0:00:01]}  Rxf2 {[%clk 0:00:09]} 47. Qxf7 {[%clk 0:00:01]}  Rg2+ {[%clk 0:00:08]} 48. Kf1 {[%clk 0:00:01]}  Raf2+ {[%clk 0:00:08]} 49. Ke1 {[%clk 0:00:02]}  Bd2# {[%clk 0:00:08]} 0-1


[Site "https://www.chess.com"]

[Event "Titled Tuesday Blitz June 27 Late 2023"]
[White "Perez, Maximiliano"]
[Black "Figorito, Nick"]
[WhiteFideId "117234"]
[BlackFideId "30923689"]
[WhiteElo "2532"]
[BlackElo "2424"]
[Result "1-0"]
[Round "10"]
[TimeControl "180+2"]
[Date "2023.06.27"]
[WhiteClock "0:01:03"]
[BlackClock "0:00:16"]
[Board "62"]

1. e4 {[%clk 0:03:00]}  e6 {[%clk 0:03:00]} 2. d3 {[%clk 0:02:59]}  d5 {[%clk 0:03:01]} 3. Nd2 {[%clk 0:02:59]}  Nc6 {[%clk 0:03:01]} 4. Ngf3 {[%clk 0:02:59]}  Nf6 {[%clk 0:03:02]} 5. g3 {[%clk 0:02:58]}  dxe4 {[%clk 0:03:02]} 6. dxe4 {[%clk 0:02:59]}  e5 {[%clk 0:03:02]} 7. Bg2 {[%clk 0:03:00]}  Bc5 {[%clk 0:03:02]} 8. O-O {[%clk 0:03:00]}  O-O {[%clk 0:03:02]} 9. h3 {[%clk 0:02:59]}  Qe7 {[%clk 0:02:58]} 10. c3 {[%clk 0:02:59]}  a5 {[%clk 0:02:58]} 11. Qc2 {[%clk 0:02:55]}  Be6 {[%clk 0:02:42]} 12. Ng5 {[%clk 0:02:49]}  Bd7 {[%clk 0:02:34]} 13. Nc4 {[%clk 0:02:48]}  h6 {[%clk 0:02:15]} 14. Nf3 {[%clk 0:02:48]}  Rfd8 {[%clk 0:02:12]} 15. Nh4 {[%clk 0:02:45]}  Be6 {[%clk 0:02:01]} 16. Ne3 {[%clk 0:02:45]}  g6 {[%clk 0:01:47]} 17. Kh2 {[%clk 0:01:59]}  Nh5 {[%clk 0:01:41]} 18. Nd5 {[%clk 0:01:56]}  Bxd5 {[%clk 0:01:23]} 19. exd5 {[%clk 0:01:57]}  Nb8 {[%clk 0:01:21]} 20. Bxh6 {[%clk 0:01:55]}  Qf6 {[%clk 0:01:15]} 21. Nf3 {[%clk 0:01:48]}  Qh8 {[%clk 0:01:06]} 22. Be3 {[%clk 0:01:32]}  Bxe3 {[%clk 0:01:00]} 23. fxe3 {[%clk 0:01:32]}  Rxd5 {[%clk 0:01:00]} 24. Ng5 {[%clk 0:01:32]}  Rd7 {[%clk 0:00:55]} 25. Nxf7 {[%clk 0:01:33]}  Qg7 {[%clk 0:00:40]} 26. Ng5 {[%clk 0:01:33]}  Nc6 {[%clk 0:00:34]} 27. Rad1 {[%clk 0:01:30]}  Re7 {[%clk 0:00:23]} 28. Qb3+ {[%clk 0:01:09]}  Kh8 {[%clk 0:00:23]} 29. Qxb7 {[%clk 0:01:09]}  Rb8 {[%clk 0:00:16]} 30. Qxc6 {[%clk 0:01:03]} 1-0


[Site "https://www.chess.com"]